[Event "Titled Tuesday Blitz April 18 Early 2023"]
[White "Skliarov, Viktor"]
[Black "Toncheva, Nadya"]
[WhiteFideId "14106736"]
[BlackFideId "2924056"]
[WhiteElo "2317"]
[BlackElo "2101"]
[Result "0-1"]
[Round "07"]
[TimeControl "180+2"]
[Date "2023.04.18"]
[WhiteClock "0:00:01"]
[BlackClock "0:00:08"]

1. e4 {[%clk 0:03:00]}  c5 {[%clk 0:03:00]} 2. Nf3 {[%clk 0:02:58]}  Nc6 {[%clk 0:03:00]} 3. Bb5 {[%clk 0:02:58]}  e6 {[%clk 0:03:00]} 4. Bxc6 {[%clk 0:02:57]}  bxc6 {[%clk 0:03:00]} 5. d3 {[%clk 0:02:58]}  f6 {[%clk 0:02:58]} 6. h4 {[%clk 0:02:53]}  Ne7 {[%clk 0:02:51]} 7. h5 {[%clk 0:02:53]}  Qc7 {[%clk 0:02:45]} 8. Qe2 {[%clk 0:02:52]}  e5 {[%clk 0:02:44]} 9. Nh4 {[%clk 0:02:47]}  d6 {[%clk 0:02:43]} 10. f4 {[%clk 0:02:46]}  Be6 {[%clk 0:02:36]} 11. O-O {[%clk 0:02:37]}  O-O-O {[%clk 0:02:26]} 12. a3 {[%clk 0:02:37]}  g6 {[%clk 0:02:19]} 13. b4 {[%clk 0:02:25]}  d5 {[%clk 0:01:48]} 14. f5 {[%clk 0:02:06]}  gxf5 {[%clk 0:01:46]} 15. exf5 {[%clk 0:02:06]}  Bf7 {[%clk 0:01:45]} 16. bxc5 {[%clk 0:02:07]}  d4 {[%clk 0:01:35]} 17. Nd2 {[%clk 0:02:04]}  Nd5 {[%clk 0:01:34]} 18. Ne4 {[%clk 0:02:04]}  Rg8 {[%clk 0:01:30]} 19. Bd2 {[%clk 0:01:56]}  Be8 {[%clk 0:01:11]} 20. h6 {[%clk 0:01:45]}  Qf7 {[%clk 0:01:03]} 21. Rab1 {[%clk 0:01:33]}  Qh5 {[%clk 0:01:01]} 22. Qxh5 {[%clk 0:01:28]}  Bxh5 {[%clk 0:01:02]} 23. Kf2 {[%clk 0:01:18]}  Rd7 {[%clk 0:00:48]} 24. Rb3 {[%clk 0:01:14]}  Rb7 {[%clk 0:00:47]} 25. Rfb1 {[%clk 0:01:14]}  Rxb3 {[%clk 0:00:47]} 26. cxb3 {[%clk 0:01:10]}  Rg4 {[%clk 0:00:31]} 27. g3 {[%clk 0:01:09]}  Be7 {[%clk 0:00:26]} 28. b4 {[%clk 0:01:07]}  a6 {[%clk 0:00:25]} 29. a4 {[%clk 0:01:06]}  Rg8 {[%clk 0:00:20]} 30. b5 {[%clk 0:00:58]}  axb5 {[%clk 0:00:20]} 31. axb5 {[%clk 0:00:59]}  cxb5 {[%clk 0:00:18]} 32. Rxb5 {[%clk 0:00:59]}  Kc7 {[%clk 0:00:18]} 33. Ra5 {[%clk 0:00:45]}  Rb8 {[%clk 0:00:18]} 34. Ra7+ {[%clk 0:00:31]}  Kc6 {[%clk 0:00:18]} 35. Ra6+ {[%clk 0:00:28]}  Kc7 {[%clk 0:00:18]} 36. Ba5+ {[%clk 0:00:26]}  Kd7 {[%clk 0:00:13]} 37. c6+ {[%clk 0:00:24]}  Kc8 {[%clk 0:00:13]} 38. c7 {[%clk 0:00:21]}  Nxc7 {[%clk 0:00:13]} 39. Rc6 {[%clk 0:00:14]}  Rb2+ {[%clk 0:00:13]} 40. Ke1 {[%clk 0:00:12]}  Rb7 {[%clk 0:00:12]} 41. Nxf6 {[%clk 0:00:11]}  Bxf6 {[%clk 0:00:10]} 42. Rxf6 {[%clk 0:00:11]}  Nd5 {[%clk 0:00:11]} 43. Rf8+ {[%clk 0:00:09]}  Kd7 {[%clk 0:00:11]} 44. f6 {[%clk 0:00:08]}  Rb1+ {[%clk 0:00:10]} 45. Kd2 {[%clk 0:00:04]}  Ne3 {[%clk 0:00:11]} 46. Rd8+ {[%clk 0:00:03]}  Ke6 {[%clk 0:00:10]} 47. g4 {[%clk 0:00:03]}  Bxg4 {[%clk 0:00:08]} 48. Re8+ {[%clk 0:00:02]}  Kxf6 {[%clk 0:00:08]} 49. Bd8+ {[%clk 0:00:02]}  Kf7 {[%clk 0:00:07]} 50. Re7+ {[%clk 0:00:02]}  Kf8 {[%clk 0:00:08]} 51. Rxe5 {[%clk 0:00:01]}  Rd1# {[%clk 0:00:08]} 0-1


[Site "https://www.chess.com"]

[Event "Titled Tuesday Blitz April 18 Early 2023"]
[White "Coenen, Michael"]
[Black "Mendez Fortes, Eduardo Jesus"]
[WhiteFideId "4697367"]
[BlackFideId "3502376"]
[WhiteElo "2328"]
[BlackElo "2307"]
[Result "0-1"]
[Round "07"]
[TimeControl "180+2"]
[Date "2023.04.18"]
[WhiteClock "0:00:01"]
[BlackClock "0:00:05"]

1. e4 {[%clk 0:03:00]}  c5 {[%clk 0:02:59]} 2. Nf3 {[%clk 0:03:00]}  d6 {[%clk 0:03:00]} 3. Nc3 {[%clk 0:03:01]}  Nf6 {[%clk 0:03:00]} 4. e5 {[%clk 0:03:01]}  dxe5 {[%clk 0:03:00]} 5. Nxe5 {[%clk 0:03:02]}  e6 {[%clk 0:02:59]} 6. g3 {[%clk 0:03:00]}  Bd6 {[%clk 0:02:58]} 7. Nc4 {[%clk 0:02:57]}  Be7 {[%clk 0:02:58]} 8. Bg2 {[%clk 0:02:57]}  O-O {[%clk 0:02:58]} 9. O-O {[%clk 0:02:56]}  Nc6 {[%clk 0:02:54]} 10. d3 {[%clk 0:02:55]}  Nd4 {[%clk 0:02:53]} 11. a4 {[%clk 0:02:54]}  Rb8 {[%clk 0:02:51]} 12. Bf4 {[%clk 0:02:50]}  Ra8 {[%clk 0:02:50]} 13. Re1 {[%clk 0:02:41]}  Nd5 {[%clk 0:02:40]} 14. Nxd5 {[%clk 0:02:32]}  exd5 {[%clk 0:02:40]} 15. Ne3 {[%clk 0:02:31]}  Be6 {[%clk 0:02:36]} 16. c3 {[%clk 0:02:30]}  Nc6 {[%clk 0:02:35]} 17. Nc2 {[%clk 0:02:21]}  Bf6 {[%clk 0:02:33]} 18. Qf3 {[%clk 0:02:16]}  Qd7 {[%clk 0:02:30]} 19. h3 {[%clk 0:02:13]}  Rad8 {[%clk 0:02:29]} 20. Kh2 {[%clk 0:02:13]}  a6 {[%clk 0:02:12]} 21. Qe2 {[%clk 0:02:05]}  Rfe8 {[%clk 0:02:07]} 22. Qd2 {[%clk 0:02:06]}  Na5 {[%clk 0:02:05]} 23. Rad1 {[%clk 0:01:51]}  Nb3 {[%clk 0:01:55]} 24. Qe2 {[%clk 0:01:51]}  Bxh3 {[%clk 0:01:47]} 25. Bxh3 {[%clk 0:01:20]}  Rxe2 {[%clk 0:01:47]} 26. Rxe2 {[%clk 0:01:21]}  Qxa4 {[%clk 0:01:44]} 27. Bc7 {[%clk 0:01:07]}  Ra8 {[%clk 0:01:44]} 28. Rde1 {[%clk 0:01:04]}  g6 {[%clk 0:01:42]} 29. Bd6 {[%clk 0:00:59]}  Qc6 {[%clk 0:01:26]} 30. Bf4 {[%clk 0:00:56]}  Kg7 {[%clk 0:01:18]} 31. Bg2 {[%clk 0:00:54]}  Qd7 {[%clk 0:00:47]} 32. Be5 {[%clk 0:00:54]}  Bxe5 {[%clk 0:00:47]} 33. Rxe5 {[%clk 0:00:55]}  d4 {[%clk 0:00:31]} 34. Re7 {[%clk 0:00:55]}  Qf5 {[%clk 0:00:26]} 35. cxd4 {[%clk 0:00:43]}  Nxd4 {[%clk 0:00:19]} 36. Nxd4 {[%clk 0:00:31]}  cxd4 {[%clk 0:00:20]} 37. Rxb7 {[%clk 0:00:31]}  Qh5+ {[%clk 0:00:18]} 38. Kg1 {[%clk 0:00:30]}  Rd8 {[%clk 0:00:17]} 39. Ree7 {[%clk 0:00:28]}  Qf5 {[%clk 0:00:18]} 40. Be4 {[%clk 0:00:26]}  Qf6 {[%clk 0:00:18]} 41. Rec7 {[%clk 0:00:24]}  Rd6 {[%clk 0:00:15]} 42. Kg2 {[%clk 0:00:19]}  h5 {[%clk 0:00:15]} 43. b4 {[%clk 0:00:18]}  Rb6 {[%clk 0:00:12]} 44. Rxb6 {[%clk 0:00:17]}  Qxb6 {[%clk 0:00:12]} 45. Rb7 {[%clk 0:00:18]}  Qd6 {[%clk 0:00:12]} 46. Kf3 {[%clk 0:00:13]}  g5 {[%clk 0:00:12]} 47. Kg2 {[%clk 0:00:13]}  h4 {[%clk 0:00:13]} 48. Bf5 {[%clk 0:00:08]}  Qe5 {[%clk 0:00:11]} 49. Be4 {[%clk 0:00:08]}  Qe6 {[%clk 0:00:09]} 50. Rc7 {[%clk 0:00:07]}  Kf8 {[%clk 0:00:07]} 51. Rc6 {[%clk 0:00:07]}  Qb3 {[%clk 0:00:07]} 52. Rc4 {[%clk 0:00:06]}  Qb2 {[%clk 0:00:06]} 53. Kh3 {[%clk 0:00:01]}  Qxf2 {[%clk 0:00:05]} 0-1


[Site "https://www.chess.com"]

[Event "Titled Tuesday Blitz April 18 Early 2023"]
[White "Stepanencu, Nicodim-Cosmin"]
[Black "Hua, Lefong"]
[WhiteFideId "1256220"]
[BlackFideId "2602253"]
[WhiteElo "2185"]
[BlackElo "2633"]
[Result "0-1"]
[Round "07"]
[TimeControl "180+2"]
[Date "2023.04.18"]
[WhiteClock "0:00:01"]
[BlackClock "0:00:04"]

1. d4 {[%clk 0:02:55]}  Nf6 {[%clk 0:03:00]} 2. Nf3 {[%clk 0:02:54]}  g6 {[%clk 0:03:00]} 3. h4 {[%clk 0:02:51]}  h5 {[%clk 0:02:57]} 4. Bg5 {[%clk 0:02:50]}  Bg7 {[%clk 0:02:58]} 5. Nbd2 {[%clk 0:02:50]}  O-O {[%clk 0:02:56]} 6. c3 {[%clk 0:02:50]}  d6 {[%clk 0:02:54]} 7. e3 {[%clk 0:02:47]}  c5 {[%clk 0:02:52]} 8. dxc5 {[%clk 0:02:42]}  dxc5 {[%clk 0:02:52]} 9. Bc4 {[%clk 0:02:41]}  Nc6 {[%clk 0:02:45]} 10. a4 {[%clk 0:02:36]}  b6 {[%clk 0:02:44]} 11. Qe2 {[%clk 0:02:26]}  Bg4 {[%clk 0:02:37]} 12. Bb5 {[%clk 0:02:04]}  Ne5 {[%clk 0:02:29]} 13. Qf1 {[%clk 0:02:05]}  Nxf3+ {[%clk 0:02:25]} 14. gxf3 {[%clk 0:02:01]}  Be6 {[%clk 0:02:19]} 15. O-O-O {[%clk 0:01:53]}  Qc7 {[%clk 0:02:13]} 16. Ne4 {[%clk 0:01:32]}  Nxe4 {[%clk 0:02:09]} 17. fxe4 {[%clk 0:01:33]}  a6 {[%clk 0:02:08]} 18. Bc4 {[%clk 0:01:27]}  Bxc4 {[%clk 0:02:04]} 19. Qxc4 {[%clk 0:01:28]}  b5 {[%clk 0:02:04]} 20. Qd5 {[%clk 0:01:06]}  bxa4 {[%clk 0:01:59]} 21. Qd7 {[%clk 0:01:04]}  Qa5 {[%clk 0:01:52]} 22. Bxe7 {[%clk 0:01:00]}  a3 {[%clk 0:01:43]} 23. Bxf8 {[%clk 0:00:52]}  axb2+ {[%clk 0:01:37]} 24. Kb1 {[%clk 0:00:48]}  Rxf8 {[%clk 0:00:44]} 25. f4 {[%clk 0:00:17]}  Rb8 {[%clk 0:00:32]} 26. e5 {[%clk 0:00:12]}  Qa1+ {[%clk 0:00:22]} 27. Kc2 {[%clk 0:00:12]}  b1=Q+ {[%clk 0:00:18]} 28. Rxb1 {[%clk 0:00:12]}  Qa2+ {[%clk 0:00:18]} 29. Kd3 {[%clk 0:00:09]}  c4+ {[%clk 0:00:17]} 30. Kd4 {[%clk 0:00:06]}  Rxb1 {[%clk 0:00:13]} 31. Qe8+ {[%clk 0:00:07]}  Kh7 {[%clk 0:00:13]} 32. Rxb1 {[%clk 0:00:06]}  Qxb1 {[%clk 0:00:13]} 33. Qxf7 {[%clk 0:00:07]}  Qd3+ {[%clk 0:00:13]} 34. Kc5 {[%clk 0:00:07]}  Qxc3 {[%clk 0:00:11]} 35. e6 {[%clk 0:00:05]}  Qxe3+ {[%clk 0:00:08]} 36. Kxc4 {[%clk 0:00:06]}  Qd4+ {[%clk 0:00:08]} 37. Kb3 {[%clk 0:00:05]}  Qf6 {[%clk 0:00:07]} 38. Qe8 {[%clk 0:00:03]}  Qc3+ {[%clk 0:00:06]} 39. Ka4 {[%clk 0:00:03]}  Qc4+ {[%clk 0:00:07]} 40. Ka3 {[%clk 0:00:03]}  Qc3+ {[%clk 0:00:05]} 41. Ka4 {[%clk 0:00:03]}  Qd4+ {[%clk 0:00:06]} 42. Ka5 {[%clk 0:00:03]}  Qxf4 {[%clk 0:00:05]} 43. e7 {[%clk 0:00:02]}  Qe5+ {[%clk 0:00:03]} 44. Kxa6 {[%clk 0:00:02]}  Qd6+ {[%clk 0:00:04]} 45. Kb7 {[%clk 0:00:02]}  Qd5+ {[%clk 0:00:04]} 46. Kc7 {[%clk 0:00:02]}  Be5+ {[%clk 0:00:04]} 47. Kb6 {[%clk 0:00:03]}  Bd4+ {[%clk 0:00:04]} 48. Ka6 {[%clk 0:00:02]}  Qc4+ {[%clk 0:00:04]} 49. Qb5 {[%clk 0:00:01]}  Qe6+ {[%clk 0:00:04]} 0-1


[Site "https://www.chess.com"]

[Event "Titled Tuesday Blitz April 18 Early 2023"]
[White "Sieciechowicz, Marcin"]
[Black "Rom, Jasper"]
[WhiteFideId "1130170"]
[BlackFideId "2023733"]
[WhiteElo "2302"]
[BlackElo "2233"]
[Result "1-0"]
[Round "07"]
[TimeControl "180+2"]
[Date "2023.04.18"]
[WhiteClock "0:00:40"]
[BlackClock "0:00:11"]

1. d4 {[%clk 0:03:00]}  d5 {[%clk 0:02:59]} 2. c4 {[%clk 0:03:00]}  e6 {[%clk 0:02:59]} 3. Nc3 {[%clk 0:03:00]}  c6 {[%clk 0:02:58]} 4. Nf3 {[%clk 0:03:00]}  dxc4 {[%clk 0:02:58]} 5. a4 {[%clk 0:02:59]}  Bb4 {[%clk 0:02:57]} 6. e3 {[%clk 0:02:59]}  b5 {[%clk 0:02:57]} 7. Bd2 {[%clk 0:03:00]}  a5 {[%clk 0:02:56]} 8. Ne5 {[%clk 0:03:00]}  Nf6 {[%clk 0:02:55]} 9. Rb1 {[%clk 0:02:57]}  Qb6 {[%clk 0:02:47]} 10. Qf3 {[%clk 0:02:49]}  Bb7 {[%clk 0:02:45]} 11. Qg3 {[%clk 0:02:35]}  O-O {[%clk 0:02:37]} 12. f3 {[%clk 0:02:35]}  Nbd7 {[%clk 0:02:31]} 13. Be2 {[%clk 0:02:28]}  Nxe5 {[%clk 0:02:26]} 14. dxe5 {[%clk 0:02:28]}  Nd5 {[%clk 0:02:26]} 15. f4 {[%clk 0:02:27]}  Bc5 {[%clk 0:02:15]} 16. Ne4 {[%clk 0:02:19]}  Bxe3 {[%clk 0:02:07]} 17. Nf6+ {[%clk 0:01:57]}  Kh8 {[%clk 0:02:04]} 18. Bxe3 {[%clk 0:01:06]}  Qxe3 {[%clk 0:01:53]} 19. Qxe3 {[%clk 0:01:06]}  Nxe3 {[%clk 0:01:53]} 20. Nd7 {[%clk 0:01:07]}  Rfd8 {[%clk 0:01:32]} 21. Nc5 {[%clk 0:01:06]}  Bc8 {[%clk 0:01:23]} 22. Kf2 {[%clk 0:01:06]}  Nd5 {[%clk 0:01:14]} 23. Rhd1 {[%clk 0:01:06]}  Bd7 {[%clk 0:01:10]} 24. Bf3 {[%clk 0:01:06]}  Be8 {[%clk 0:01:09]} 25. g3 {[%clk 0:01:02]}  Nb4 {[%clk 0:01:04]} 26. axb5 {[%clk 0:00:57]}  Rab8 {[%clk 0:00:58]} 27. Rxd8 {[%clk 0:00:49]}  Rxd8 {[%clk 0:00:58]} 28. b6 {[%clk 0:00:49]}  Nd3+ {[%clk 0:00:18]} 29. Nxd3 {[%clk 0:00:48]}  cxd3 {[%clk 0:00:18]} 30. Ra1 {[%clk 0:00:43]}  Kg8 {[%clk 0:00:14]} 31. Rxa5 {[%clk 0:00:43]}  d2 {[%clk 0:00:14]} 32. b7 {[%clk 0:00:41]}  Rb8 {[%clk 0:00:11]} 33. Ra8 {[%clk 0:00:40]} 1-0


[Site "https://www.chess.com"]

[Event "Titled Tuesday Blitz April 18 Early 2023"]
[White "HamedWafa4"]
[Black "Kim, Sergey"]
[BlackFideId "13700570"]
[WhiteElo "2471"]
[BlackElo "2609"]
[Result "0-1"]
[Round "07"]
[TimeControl "180+2"]
[Date "2023.04.18"]
[WhiteClock "0:00:21"]
[BlackClock "0:00:34"]

1. e4 {[%clk 0:03:00]}  e5 {[%clk 0:03:00]} 2. Nf3 {[%clk 0:03:00]}  Nc6 {[%clk 0:03:00]} 3. Bb5 {[%clk 0:02:59]}  a6 {[%clk 0:03:00]} 4. Ba4 {[%clk 0:02:59]}  Nf6 {[%clk 0:03:00]} 5. O-O {[%clk 0:02:59]}  b5 {[%clk 0:03:00]} 6. Bb3 {[%clk 0:02:58]}  Bc5 {[%clk 0:03:00]} 7. d3 {[%clk 0:02:57]}  d6 {[%clk 0:03:01]} 8. h3 {[%clk 0:02:52]}  h6 {[%clk 0:03:00]} 9. Nc3 {[%clk 0:02:52]}  O-O {[%clk 0:02:59]} 10. a4 {[%clk 0:02:52]}  Rb8 {[%clk 0:02:59]} 11. axb5 {[%clk 0:02:51]}  axb5 {[%clk 0:02:59]} 12. Be3 {[%clk 0:02:51]}  Bb6 {[%clk 0:02:58]} 13. Re1 {[%clk 0:02:22]}  Be6 {[%clk 0:02:55]} 14. Nd5 {[%clk 0:02:19]}  Bxd5 {[%clk 0:02:54]} 15. exd5 {[%clk 0:02:15]}  Ne7 {[%clk 0:02:54]} 16. Bxb6 {[%clk 0:02:14]}  Rxb6 {[%clk 0:02:52]} 17. d4 {[%clk 0:02:12]}  e4 {[%clk 0:02:30]} 18. Nd2 {[%clk 0:02:10]}  Nexd5 {[%clk 0:02:30]} 19. Nxe4 {[%clk 0:02:09]}  Nxe4 {[%clk 0:02:30]} 20. Rxe4 {[%clk 0:02:03]}  Nf6 {[%clk 0:02:29]} 21. Rf4 {[%clk 0:02:03]}  d5 {[%clk 0:02:27]} 22. c3 {[%clk 0:01:58]}  Re6 {[%clk 0:02:26]} 23. Qf3 {[%clk 0:01:53]}  Rfe8 {[%clk 0:02:23]} 24. Rf5 {[%clk 0:01:42]}  c6 {[%clk 0:02:22]} 25. Bc2 {[%clk 0:01:30]}  Qd6 {[%clk 0:02:20]} 26. g3 {[%clk 0:01:24]}  Re2 {[%clk 0:02:17]} 27. Rc1 {[%clk 0:01:21]}  Qe6 {[%clk 0:02:11]} 28. Kg2 {[%clk 0:01:17]}  Rd2 {[%clk 0:02:02]} 29. Re5 {[%clk 0:01:15]}  Qd7 {[%clk 0:02:00]} 30. Bf5 {[%clk 0:01:10]}  Qd8 {[%clk 0:01:56]} 31. Rce1 {[%clk 0:01:07]}  Rxb2 {[%clk 0:01:50]} 32. Qe3 {[%clk 0:00:57]}  Rf8 {[%clk 0:01:30]} 33. Bd3 {[%clk 0:00:50]}  Qd6 {[%clk 0:01:21]} 34. Re7 {[%clk 0:00:44]}  Rb3 {[%clk 0:01:05]} 35. Qf3 {[%clk 0:00:36]}  Kh8 {[%clk 0:00:56]} 36. Bc2 {[%clk 0:00:35]}  Rb2 {[%clk 0:00:55]} 37. R1e2 {[%clk 0:00:34]}  Rxc2 {[%clk 0:00:48]} 38. Rxf7 {[%clk 0:00:29]}  Rxe2 {[%clk 0:00:41]} 39. Rxf8+ {[%clk 0:00:28]}  Qxf8 {[%clk 0:00:41]} 40. Qxe2 {[%clk 0:00:29]}  Qe8 {[%clk 0:00:41]} 41. Qa2 {[%clk 0:00:26]}  Ne4 {[%clk 0:00:37]} 42. Qa3 {[%clk 0:00:20]}  Qf8 {[%clk 0:00:34]} 43. f4 {[%clk 0:00:21]}  Qxa3 {[%clk 0:00:34]} 0-1


[Site "https://www.chess.com"]

[Event "Titled Tuesday Blitz April 18 Early 2023"]
[White "Bodnaruk, Anastasia"]
[Black "Golubev, Mikhail"]
[WhiteFideId "4181751"]
[BlackFideId "14100983"]
[WhiteElo "2310"]
[BlackElo "2374"]
[Result "1-0"]
[Round "07"]
[TimeControl "180+2"]
[Date "2023.04.18"]
[WhiteClock "0:00:35"]
[BlackClock "0:00:01"]

1. e4 {[%clk 0:03:00]}  c5 {[%clk 0:02:59]} 2. Nc3 {[%clk 0:03:00]}  Nc6 {[%clk 0:02:56]} 3. Bb5 {[%clk 0:03:00]}  Nd4 {[%clk 0:02:55]} 4. Bc4 {[%clk 0:02:59]}  e6 {[%clk 0:02:49]} 5. Nge2 {[%clk 0:02:57]}  a6 {[%clk 0:02:49]} 6. a4 {[%clk 0:02:57]}  Qc7 {[%clk 0:02:48]} 7. d3 {[%clk 0:02:50]}  Nf6 {[%clk 0:02:42]} 8. h3 {[%clk 0:02:45]}  Be7 {[%clk 0:02:08]} 9. O-O {[%clk 0:02:44]}  O-O {[%clk 0:02:04]} 10. Be3 {[%clk 0:02:43]}  Nxe2+ {[%clk 0:01:54]} 11. Qxe2 {[%clk 0:02:43]}  Rd8 {[%clk 0:01:40]} 12. Qf3 {[%clk 0:02:26]}  d6 {[%clk 0:01:05]} 13. Ba2 {[%clk 0:02:17]}  b6 {[%clk 0:00:59]} 14. d4 {[%clk 0:02:10]}  cxd4 {[%clk 0:00:51]} 15. Bxd4 {[%clk 0:02:09]}  Bb7 {[%clk 0:00:49]} 16. Rfe1 {[%clk 0:01:47]}  Nd7 {[%clk 0:00:43]} 17. Qg3 {[%clk 0:01:37]}  Bf6 {[%clk 0:00:40]} 18. Rad1 {[%clk 0:01:36]}  Rac8 {[%clk 0:00:24]} 19. Kh1 {[%clk 0:01:25]}  Bxd4 {[%clk 0:00:15]} 20. Rxd4 {[%clk 0:01:25]}  Nf6 {[%clk 0:00:16]} 21. Bb3 {[%clk 0:01:05]}  Qe7 {[%clk 0:00:10]} 22. Qe3 {[%clk 0:01:02]}  Nd7 {[%clk 0:00:08]} 23. f4 {[%clk 0:00:58]}  Nc5 {[%clk 0:00:08]} 24. Ba2 {[%clk 0:00:56]}  e5 {[%clk 0:00:06]} 25. Rd2 {[%clk 0:00:53]}  exf4 {[%clk 0:00:06]} 26. Qxf4 {[%clk 0:00:53]}  Rf8 {[%clk 0:00:03]} 27. Qxd6 {[%clk 0:00:52]}  Qg5 {[%clk 0:00:02]} 28. Rde2 {[%clk 0:00:42]}  Rce8 {[%clk 0:00:02]} 29. Bd5 {[%clk 0:00:37]}  Bxd5 {[%clk 0:00:01]} 30. Qxd5 {[%clk 0:00:36]}  Qf6 {[%clk 0:00:01]} 31. e5 {[%clk 0:00:35]} 1-0


[Site "https://www.chess.com"]

[Event "Titled Tuesday Blitz April 18 Early 2023"]
[White "Sargissyan, Sargis"]
[Black "Ezat, Mohamed"]
[WhiteFideId "13303210"]
[BlackFideId "10600906"]
[WhiteElo "2109"]
[BlackElo "2386"]
[Result "0-1"]
[Round "07"]
[TimeControl "180+2"]
[Date "2023.04.18"]
[WhiteClock "0:00:01"]
[BlackClock "0:00:09"]

1. e4 {[%clk 0:03:00]}  e5 {[%clk 0:02:59]} 2. Nf3 {[%clk 0:03:00]}  Nc6 {[%clk 0:02:58]} 3. Bb5 {[%clk 0:03:01]}  Nge7 {[%clk 0:02:56]} 4. Nc3 {[%clk 0:03:00]}  d6 {[%clk 0:02:53]} 5. d4 {[%clk 0:02:51]}  Bd7 {[%clk 0:02:50]} 6. Bg5 {[%clk 0:02:45]}  Qc8 {[%clk 0:02:32]} 7. Bxe7 {[%clk 0:02:35]}  Bxe7 {[%clk 0:02:24]} 8. Bxc6 {[%clk 0:02:33]}  Bxc6 {[%clk 0:02:21]} 9. dxe5 {[%clk 0:02:34]}  O-O {[%clk 0:02:21]} 10. O-O {[%clk 0:02:30]}  Rd8 {[%clk 0:02:19]} 11. Qe2 {[%clk 0:02:07]}  Qe6 {[%clk 0:02:09]} 12. exd6 {[%clk 0:01:54]}  Bxd6 {[%clk 0:02:09]} 13. Rad1 {[%clk 0:01:48]}  Re8 {[%clk 0:01:59]} 14. Nd4 {[%clk 0:01:38]}  Qh6 {[%clk 0:01:38]} 15. g3 {[%clk 0:01:28]}  Bd7 {[%clk 0:01:33]} 16. f4 {[%clk 0:01:25]}  Bh3 {[%clk 0:01:30]} 17. Rfe1 {[%clk 0:01:17]}  Rad8 {[%clk 0:01:27]} 18. Qf2 {[%clk 0:00:57]}  Bg4 {[%clk 0:01:22]} 19. Rd3 {[%clk 0:00:56]}  a6 {[%clk 0:01:21]} 20. Nb3 {[%clk 0:00:44]}  Bb4 {[%clk 0:01:10]} 21. Rd4 {[%clk 0:00:31]}  Qb6 {[%clk 0:00:58]} 22. Rxd8 {[%clk 0:00:22]}  Rxd8 {[%clk 0:00:49]} 23. Qxb6 {[%clk 0:00:21]}  cxb6 {[%clk 0:00:49]} 24. Kf2 {[%clk 0:00:17]}  a5 {[%clk 0:00:47]} 25. a3 {[%clk 0:00:16]}  Bf8 {[%clk 0:00:38]} 26. Nd5 {[%clk 0:00:11]}  Be6 {[%clk 0:00:36]} 27. Rd1 {[%clk 0:00:10]}  a4 {[%clk 0:00:34]} 28. Nc1 {[%clk 0:00:08]}  Rc8 {[%clk 0:00:26]} 29. c3 {[%clk 0:00:07]}  b5 {[%clk 0:00:25]} 30. Ne2 {[%clk 0:00:06]}  Bg4 {[%clk 0:00:23]} 31. Rd2 {[%clk 0:00:05]}  Bc5+ {[%clk 0:00:22]} 32. Nd4 {[%clk 0:00:04]}  Rd8 {[%clk 0:00:19]} 33. Ne3 {[%clk 0:00:04]}  Bc8 {[%clk 0:00:18]} 34. Nf3 {[%clk 0:00:03]}  Re8 {[%clk 0:00:17]} 35. e5 {[%clk 0:00:03]}  b6 {[%clk 0:00:16]} 36. Nd4 {[%clk 0:00:01]}  f6 {[%clk 0:00:16]} 37. exf6 {[%clk 0:00:01]}  gxf6 {[%clk 0:00:15]} 38. Nec2 {[%clk 0:00:01]}  Bf5 {[%clk 0:00:14]} 39. Re2 {[%clk 0:00:01]}  Rd8 {[%clk 0:00:12]} 40. Ne3 {[%clk 0:00:02]}  Bd3 {[%clk 0:00:12]} 41. Rd2 {[%clk 0:00:02]}  Be4 {[%clk 0:00:10]} 42. g4 {[%clk 0:00:02]}  Kf7 {[%clk 0:00:09]} 43. f5 {[%clk 0:00:02]}  h5 {[%clk 0:00:09]} 44. h3 {[%clk 0:00:03]}  Rh8 {[%clk 0:00:08]} 45. Kg3 {[%clk 0:00:03]}  hxg4 {[%clk 0:00:09]} 46. Nxg4 {[%clk 0:00:02]}  Bd6+ {[%clk 0:00:09]} 47. Kf2 {[%clk 0:00:01]}  Bb7 {[%clk 0:00:08]} 48. Nf3 {[%clk 0:00:01]}  Bc5+ {[%clk 0:00:09]} 0-1


[Site "https://www.chess.com"]